[Event "Betsys MČR v online bleskovém šachu 2021"]
[Site "Chess.com"]
[Date "2021.04.17"]
[Round "1"]
[White "nw_tynka"]
[Black "JanBaraCZE"]
[Result "1-0"]
[WhiteElo "2208"]
[BlackElo "1587"]
[TimeControl "180+1"]
[EndTime "9:08:14 PDT"]
[Termination "Uživatel nw_tynka zvítězil po vzdání soupeře"]

1. e4 {[%clk 0:03:00.7]} 1... c5 {[%clk 0:03:00.9]} 2. Nf3 {[%clk 0:03:00.3]}
2... Nc6 {[%clk 0:03:01.1]} 3. d4 {[%clk 0:03:00.1]} 3... cxd4 {[%clk
0:03:00.9]} 4. Nxd4 {[%clk 0:03:01]} 4... d6 {[%clk 0:03:01.4]} 5. c4 {[%clk
0:02:58.8]} 5... g6 {[%clk 0:03:01.3]} 6. Nc3 {[%clk 0:02:56.6]} 6... Bg7 {[%clk
0:03:01.2]} 7. Be3 {[%clk 0:02:56.2]} 7... Nf6 {[%clk 0:03:01]} 8. Be2 {[%clk
0:02:55.6]} 8... O-O {[%clk 0:03:00.3]} 9. O-O {[%clk 0:02:55.1]} 9... a6 {[%clk
0:02:55.3]} 10. Rc1 {[%clk 0:02:53.3]} 10... Ne5 {[%clk 0:02:50.9]} 11. h3
{[%clk 0:02:45.1]} 11... Rb8 {[%clk 0:02:47]} 12. f4 {[%clk 0:02:38.7]} 12...
Ned7 {[%clk 0:02:43.3]} 13. Bf3 {[%clk 0:02:26.9]} 13... b6 {[%clk 0:02:37.2]}
14. Nd5 {[%clk 0:02:24.9]} 14... Bb7 {[%clk 0:02:27.2]} 15. Kh1 {[%clk
0:02:02.4]} 15... Nc5 {[%clk 0:02:21.2]} 16. Nxf6+ {[%clk 0:01:44.3]} 16... Bxf6
{[%clk 0:02:18.1]} 17. b4 {[%clk 0:01:43.1]} 17... Nxe4 {[%clk 0:02:16.1]} 18.
Ne2 {[%clk 0:01:35.5]} 18... Bh4 {[%clk 0:01:38.2]} 19. Qd4 {[%clk 0:01:16.9]}
19... Ng3+ {[%clk 0:01:29.1]} 20. Nxg3 {[%clk 0:01:16.2]} 20... Bxg3 {[%clk
0:01:27.8]} 21. Bxb7 {[%clk 0:00:57.7]} 21... Rxb7 {[%clk 0:01:26.9]} 22. f5
{[%clk 0:00:56.5]} 22... Be5 {[%clk 0:01:23.1]} 23. Qh4 {[%clk 0:00:52.3]} 23...
h5 {[%clk 0:01:11.3]} 24. fxg6 {[%clk 0:00:48.9]} 24... fxg6 {[%clk 0:01:08.6]}
25. Qe4 {[%clk 0:00:48.6]} 25... Rxf1+ {[%clk 0:00:28.7]} 26. Rxf1 {[%clk
0:00:47.4]} 26... Kg7 {[%clk 0:00:21.6]} 27. Qxb7 {[%clk 0:00:46.2]} 27... d5
{[%clk 0:00:17.2]} 28. Qxd5 {[%clk 0:00:43.4]} 28... Qxd5 {[%clk 0:00:16.1]} 29.
cxd5 {[%clk 0:00:43.9]} 29... Bd6 {[%clk 0:00:17]} 30. Bxb6 {[%clk 0:00:41.2]}
30... Bxb4 {[%clk 0:00:17]} 31. Bd8 {[%clk 0:00:37.4]} 31... a5 {[%clk
0:00:16.2]} 32. a4 {[%clk 0:00:36.1]} 32... Kg8 {[%clk 0:00:15.4]} 33. g3 {[%clk
0:00:35.4]} 33... Kg7 {[%clk 0:00:15.6]} 34. Kg2 {[%clk 0:00:35.2]} 34... g5
{[%clk 0:00:16.5]} 35. g4 {[%clk 0:00:33.6]} 35... h4 {[%clk 0:00:16.1]} 36. Rf5
{[%clk 0:00:33.1]} 36... Kg6 {[%clk 0:00:14.8]} 37. Kf3 {[%clk 0:00:32]} 37...
Bd6 {[%clk 0:00:14.7]} 38. Ke4 {[%clk 0:00:30.8]} 38... Bb4 {[%clk 0:00:14.4]}
39. Re5 {[%clk 0:00:29.2]} 39... Kf6 {[%clk 0:00:13.4]} 40. Re6+ {[%clk
0:00:27.9]} 40... Kf7 {[%clk 0:00:13.1]} 41. Kf5 {[%clk 0:00:27.4]} 41... Bd2
{[%clk 0:00:12.9]} 42. Rxe7+ {[%clk 0:00:26.5]} 42... Kf8 {[%clk 0:00:13.3]} 43.
Re6 {[%clk 0:00:25.7]} 43... Bb4 {[%clk 0:00:13.1]} 44. Bxg5 {[%clk 0:00:25.5]}
44... Bc5 {[%clk 0:00:11]} 45. d6 {[%clk 0:00:25.2]} 45... Be3 {[%clk
0:00:11.2]} 46. d7 {[%clk 0:00:24.7]} 46... Bd4 {[%clk 0:00:12.1]} 47. d8=Q+
{[%clk 0:00:23.6]} 47... Kg7 {[%clk 0:00:13]} 1-0

[Event "Betsys MČR v online bleskovém šachu 2021"]
[Site "Chess.com"]
[Date "2021.04.17"]
[Round "1"]
[White "reflexia64"]
[Black "Ehlundi"]
[Result "1-0"]
[WhiteElo "2402"]
[BlackElo "1766"]
[TimeControl "180+1"]
[EndTime "9:08:16 PDT"]
[Termination "Uživatel reflexia64 zvítězil po vzdání soupeře"]

1. e4 {[%clk 0:02:59.2]} 1... c5 {[%clk 0:02:59.8]} 2. Nf3 {[%clk 0:02:58.2]}
2... Nc6 {[%clk 0:03:00.3]} 3. Nc3 {[%clk 0:02:56.4]} 3... e6 {[%clk 0:03:00.1]}
4. d4 {[%clk 0:02:50.4]} 4... cxd4 {[%clk 0:02:59.8]} 5. Nxd4 {[%clk 0:02:50.2]}
5... Bc5 {[%clk 0:02:58.8]} 6. Nb3 {[%clk 0:02:29.9]} 6... Bb6 {[%clk
0:02:58.1]} 7. Bd3 {[%clk 0:02:28.2]} 7... Nge7 {[%clk 0:02:57.3]} 8. Qe2 {[%clk
0:02:26.5]} 8... O-O {[%clk 0:02:56.8]} 9. Be3 {[%clk 0:02:24.4]} 9... Ng6
{[%clk 0:02:55.6]} 10. O-O-O {[%clk 0:02:17.4]} 10... d5 {[%clk 0:02:55.6]} 11.
exd5 {[%clk 0:02:14.6]} 11... exd5 {[%clk 0:02:55.9]} 12. Bxg6 {[%clk
0:02:03.4]} 12... hxg6 {[%clk 0:02:51.2]} 13. Nxd5 {[%clk 0:02:02.2]} 13...
Bxe3+ {[%clk 0:02:48.9]} 14. fxe3 {[%clk 0:01:55.5]} 14... Qg5 {[%clk
0:02:48.1]} 15. Kb1 {[%clk 0:01:52.2]} 15... Be6 {[%clk 0:02:45.6]} 16. e4
{[%clk 0:01:50.6]} 16... a5 {[%clk 0:02:40.7]} 17. Nc5 {[%clk 0:01:48.3]} 17...
Bg4 {[%clk 0:02:37.9]} 18. Qd2 {[%clk 0:01:43.7]} 18... Qxd2 {[%clk 0:02:28.8]}
19. Rxd2 {[%clk 0:01:42.6]} 19... b5 {[%clk 0:02:24]} 20. h3 {[%clk 0:01:39.4]}
20... Bc8 {[%clk 0:02:16.5]} 21. Rf1 {[%clk 0:01:33.2]} 21... Ne5 {[%clk
0:02:14.8]} 22. Ne7+ {[%clk 0:01:29.5]} 22... Kh7 {[%clk 0:02:12]} 23. b3 {[%clk
0:01:26.5]} 23... a4 {[%clk 0:02:06.2]} 24. Nd3 {[%clk 0:01:20.5]} 24... Nxd3
{[%clk 0:01:48.1]} 25. Rxd3 {[%clk 0:01:19.7]} 25... Be6 {[%clk 0:01:46.5]} 26.
Nd5 {[%clk 0:01:17.7]} 26... axb3 {[%clk 0:01:39.2]} 27. cxb3 {[%clk 0:01:16.6]}
27... Rfd8 {[%clk 0:01:31.5]} 28. Rfd1 {[%clk 0:01:15.3]} 28... Rdb8 {[%clk
0:01:22.9]} 29. Nc7 {[%clk 0:01:12.9]} 29... Ra7 {[%clk 0:01:21.7]} 30. Nxe6
{[%clk 0:01:12.5]} 30... fxe6 {[%clk 0:01:22.2]} 31. Rd6 {[%clk 0:01:11.5]}
31... Re7 {[%clk 0:01:22]} 32. e5 {[%clk 0:01:06.1]} 32... g5 {[%clk 0:01:16.7]}
33. Rc1 {[%clk 0:00:57]} 33... Kg6 {[%clk 0:01:15.3]} 34. g4 {[%clk 0:00:52.8]}
34... Rh8 {[%clk 0:01:12.3]} 35. Rc3 {[%clk 0:00:50.7]} 35... Rf8 {[%clk
0:01:10.9]} 36. Rb6 {[%clk 0:00:44.4]} 36... Rf1+ {[%clk 0:01:08.5]} 37. Kb2
{[%clk 0:00:44.1]} 37... Rf2+ {[%clk 0:01:08.7]} 38. Rc2 {[%clk 0:00:42]} 38...
Rf3 {[%clk 0:01:08.2]} 39. Rxb5 {[%clk 0:00:41.6]} 39... Rxh3 {[%clk 0:01:07.9]}
40. a4 {[%clk 0:00:39.5]} 40... Rg3 {[%clk 0:01:01]} 41. Rc4 {[%clk 0:00:38.4]}
41... Rd7 {[%clk 0:00:58.1]} 42. a5 {[%clk 0:00:38]} 42... Rd2+ {[%clk
0:00:56.5]} 43. Ka3 {[%clk 0:00:37.8]} 43... Rdg2 {[%clk 0:00:50.9]} 44. Rbb4
{[%clk 0:00:35.6]} 44... Rg1 {[%clk 0:00:50.1]} 45. Ka4 {[%clk 0:00:34]} 45...
Rd3 {[%clk 0:00:48.5]} 46. Kb5 {[%clk 0:00:32.7]} 46... Rd5+ {[%clk 0:00:48.3]}
47. Rc5 {[%clk 0:00:32.7]} 47... Rd8 {[%clk 0:00:30.7]} 48. a6 {[%clk
0:00:21.6]} 48... Rb8+ {[%clk 0:00:29.1]} 49. Ka5 {[%clk 0:00:21.5]} 49... Rxb4
{[%clk 0:00:29]} 50. Kxb4 {[%clk 0:00:20.5]} 50... Rxg4+ {[%clk 0:00:28]} 51.
Kb5 {[%clk 0:00:20.1]} 51... Rg1 {[%clk 0:00:26.8]} 52. a7 {[%clk 0:00:19.6]}
52... Ra1 {[%clk 0:00:26.8]} 53. Kb6 {[%clk 0:00:19.8]} 53... g4 {[%clk
0:00:26.5]} 54. Ra5 {[%clk 0:00:19.7]} 1-0

[Event "Betsys MČR v online bleskovém šachu 2021"]
[Site "Chess.com"]
[Date "2021.04.17"]
[Round "1"]
[White "RomanHlavicka"]
[Black "Chessillusion213"]
[Result "0-1"]
[WhiteElo "1517"]
[BlackElo "2171"]
[TimeControl "180+1"]
[EndTime "9:08:18 PDT"]
[Termination "Uživatel Chessillusion213 zvítězil po vzdání soupeře"]

1. e4 {[%clk 0:03:00.2]} 1... c5 {[%clk 0:02:59.2]} 2. Nf3 {[%clk 0:02:59.2]}
2... Nc6 {[%clk 0:02:59.1]} 3. d4 {[%clk 0:02:58.2]} 3... cxd4 {[%clk
0:02:59.3]} 4. Nxd4 {[%clk 0:02:58.2]} 4... g6 {[%clk 0:02:59.4]} 5. Nc3 {[%clk
0:02:54.5]} 5... Bg7 {[%clk 0:02:59]} 6. Be3 {[%clk 0:02:53.8]} 6... Nf6 {[%clk
0:02:58.8]} 7. Nxc6 {[%clk 0:02:50.4]} 7... bxc6 {[%clk 0:02:58]} 8. Bd3 {[%clk
0:02:49.4]} 8... O-O {[%clk 0:02:56.8]} 9. O-O {[%clk 0:02:49.5]} 9... d5 {[%clk
0:02:55.2]} 10. exd5 {[%clk 0:02:46.1]} 10... cxd5 {[%clk 0:02:54.8]} 11. Bg5
{[%clk 0:02:43.6]} 11... Bb7 {[%clk 0:02:46.9]} 12. Qe2 {[%clk 0:02:39.4]} 12...
Rc8 {[%clk 0:02:32]} 13. Rab1 {[%clk 0:02:31.2]} 13... Qc7 {[%clk 0:02:15]} 14.
Bxf6 {[%clk 0:02:21.5]} 14... Bxf6 {[%clk 0:02:13.4]} 15. f3 {[%clk 0:02:13.7]}
15... Rfd8 {[%clk 0:01:58.1]} 16. Kh1 {[%clk 0:02:12.6]} 16... Qb6 {[%clk
0:01:51.7]} 17. Na4 {[%clk 0:02:00.2]} 17... Qa5 {[%clk 0:01:47.5]} 18. b3
{[%clk 0:01:58.8]} 18... Bc6 {[%clk 0:01:42.3]} 19. Nb2 {[%clk 0:01:46.5]} 19...
Qxa2 {[%clk 0:01:35.3]} 20. Na4 {[%clk 0:01:46.3]} 20... Bxa4 {[%clk 0:01:33.2]}
21. bxa4 {[%clk 0:01:45.7]} 21... Qxa4 {[%clk 0:01:32.2]} 22. Rb7 {[%clk
0:01:43.8]} 22... Rb8 {[%clk 0:01:21.2]} 23. Rc7 {[%clk 0:01:39.9]} 23... Qa5
{[%clk 0:01:16]} 24. Rc6 {[%clk 0:01:30.4]} 24... Rdc8 {[%clk 0:01:10.7]} 25.
Rxc8+ {[%clk 0:01:29.3]} 25... Rxc8 {[%clk 0:01:11]} 26. Rb1 {[%clk 0:01:28.5]}
26... Qc7 {[%clk 0:01:09.4]} 27. Ba6 {[%clk 0:01:24.6]} 27... Rb8 {[%clk
0:01:07.1]} 28. Rxb8+ {[%clk 0:01:16.7]} 28... Qxb8 {[%clk 0:01:06.9]} 29. g3
{[%clk 0:01:15]} 29... Qb6 {[%clk 0:01:03.8]} 30. Kg2 {[%clk 0:01:11.2]} 30...
e5 {[%clk 0:00:56.3]} 31. Qd3 {[%clk 0:01:05.5]} 31... e4 {[%clk 0:00:52.4]} 32.
fxe4 {[%clk 0:01:01.8]} 32... dxe4 {[%clk 0:00:52.4]} 33. Qe2 {[%clk 0:00:55.9]}
33... e3 {[%clk 0:00:52]} 34. Kf3 {[%clk 0:00:50.5]} 34... Bd4 {[%clk
0:00:50.8]} 35. Qd3 {[%clk 0:00:44.2]} 35... Qf6+ {[%clk 0:00:46.9]} 36. Ke2
{[%clk 0:00:40.8]} 36... Qf2+ {[%clk 0:00:45.8]} 37. Kd1 {[%clk 0:00:40.4]}
37... Qg1+ {[%clk 0:00:40.9]} 38. Qf1 {[%clk 0:00:34]} 38... Qxh2 {[%clk
0:00:38.1]} 39. Bc4 {[%clk 0:00:30.4]} 39... Qf2 {[%clk 0:00:31.4]} 40. Qxf2
{[%clk 0:00:25.4]} 40... exf2 {[%clk 0:00:31.4]} 41. Ke2 {[%clk 0:00:25.5]}
41... Kf8 {[%clk 0:00:31.1]} 42. Ba6 {[%clk 0:00:19.5]} 42... Ke7 {[%clk
0:00:30.4]} 43. Kf3 {[%clk 0:00:18.2]} 43... f6 {[%clk 0:00:27.2]} 44. Ke4
{[%clk 0:00:18.2]} 44... Bb6 {[%clk 0:00:25.2]} 45. c3 {[%clk 0:00:17.7]} 45...
Kd6 {[%clk 0:00:24]} 46. Kf3 {[%clk 0:00:15.4]} 46... Ke5 {[%clk 0:00:22.6]} 47.
Bf1 {[%clk 0:00:13.3]} 47... h6 {[%clk 0:00:20.1]} 48. Bd3 {[%clk 0:00:12.1]}
48... g5 {[%clk 0:00:19.9]} 49. g4 {[%clk 0:00:11.2]} 49... a5 {[%clk
0:00:19.3]} 0-1

[Event "Betsys MČR v online bleskovém šachu 2021"]
[Site "Chess.com"]
[Date "2021.04.17"]
[Round "1"]
[White "TTCZ"]
[Black "TommyLud"]
[Result "0-1"]
[WhiteElo "1481"]
[BlackElo "2131"]
[TimeControl "180+1"]
[EndTime "9:08:18 PDT"]
[Termination "Uživatel TommyLud zvítězil po vzdání soupeře"]

1. e4 {[%clk 0:02:58.8]} 1... c5 {[%clk 0:03:00]} 2. Nc3 {[%clk 0:02:59.2]} 2...
Nc6 {[%clk 0:02:59.3]} 3. f4 {[%clk 0:02:58.9]} 3... e6 {[%clk 0:02:58.7]} 4.
Bc4 {[%clk 0:02:58.3]} 4... a6 {[%clk 0:02:58.4]} 5. a3 {[%clk 0:02:56.9]} 5...
b5 {[%clk 0:02:57]} 6. Bb3 {[%clk 0:02:56.1]} 6... Bb7 {[%clk 0:02:55.5]} 7. d3
{[%clk 0:02:54.2]} 7... Nd4 {[%clk 0:02:53.5]} 8. Ba2 {[%clk 0:02:52.3]} 8...
Nf6 {[%clk 0:02:37.2]} 9. Nf3 {[%clk 0:02:51.5]} 9... Nxf3+ {[%clk 0:02:35.4]}
10. Qxf3 {[%clk 0:02:50.3]} 10... Be7 {[%clk 0:02:32.4]} 11. O-O {[%clk
0:02:49.2]} 11... O-O {[%clk 0:02:32.1]} 12. Be3 {[%clk 0:02:44.1]} 12... d5
{[%clk 0:02:25.5]} 13. Bf2 {[%clk 0:02:34.8]} 13... dxe4 {[%clk 0:02:16.7]} 14.
dxe4 {[%clk 0:02:33.6]} 14... b4 {[%clk 0:02:16.6]} 15. Rad1 {[%clk 0:02:30.6]}
15... Qc7 {[%clk 0:02:15.4]} 16. axb4 {[%clk 0:02:21.8]} 16... cxb4 {[%clk
0:02:16.3]} 17. Ne2 {[%clk 0:02:10.5]} 17... Nxe4 {[%clk 0:02:05.6]} 18. Qe3
{[%clk 0:02:07]} 18... Nxf2 {[%clk 0:01:53.5]} 19. Rxf2 {[%clk 0:02:05.2]} 19...
Bf6 {[%clk 0:01:42.5]} 20. c3 {[%clk 0:02:03.7]} 20... a5 {[%clk 0:01:38.2]} 21.
Qg3 {[%clk 0:01:57.4]} 21... Rfd8 {[%clk 0:01:32.9]} 22. Rxd8+ {[%clk
0:01:52.7]} 22... Rxd8 {[%clk 0:01:33.8]} 23. h3 {[%clk 0:01:52.4]} 23... Rd1+
{[%clk 0:01:22.7]} 24. Kh2 {[%clk 0:01:50.6]} 24... Rd2 {[%clk 0:01:12.7]} 25.
Nd4 {[%clk 0:01:39.8]} 25... Rxf2 {[%clk 0:01:12.7]} 26. Qxf2 {[%clk 0:01:39.6]}
26... bxc3 {[%clk 0:01:13]} 27. bxc3 {[%clk 0:01:24.6]} 27... Qxc3 {[%clk
0:01:12.5]} 28. Nf3 {[%clk 0:01:20.2]} 28... Bxf3 {[%clk 0:01:06]} 29. gxf3
{[%clk 0:01:17.2]} 29... Qb4 {[%clk 0:01:03.7]} 30. Kg3 {[%clk 0:01:09.6]} 30...
g6 {[%clk 0:01:03.6]} 31. Qc2 {[%clk 0:01:06.4]} 31... a4 {[%clk 0:01:00.9]} 32.
Qc8+ {[%clk 0:01:05.6]} 32... Kg7 {[%clk 0:01:00.6]} 33. Qc4 {[%clk 0:01:03.3]}
33... Qe1+ {[%clk 0:01:00.3]} 34. Kh2 {[%clk 0:00:55.8]} 34... Qf2+ {[%clk
0:00:58.9]} 35. Kh1 {[%clk 0:00:53.8]} 35... Bd4 {[%clk 0:00:58.2]} 36. Qc1
{[%clk 0:00:44.9]} 36... Qxf3+ {[%clk 0:00:57.5]} 37. Kh2 {[%clk 0:00:43.6]}
37... Bf2 {[%clk 0:00:52.2]} 38. Qf1 {[%clk 0:00:33.7]} 38... Bg3+ {[%clk
0:00:33]} 39. Kg1 {[%clk 0:00:32.2]} 39... Qxf1+ {[%clk 0:00:33.2]} 40. Kxf1
{[%clk 0:00:32]} 40... Bxf4 {[%clk 0:00:33.9]} 41. Kg2 {[%clk 0:00:31.9]} 41...
Kf6 {[%clk 0:00:34.3]} 42. Kf3 {[%clk 0:00:32]} 42... g5 {[%clk 0:00:33.4]} 43.
Bc4 {[%clk 0:00:31.4]} 43... h5 {[%clk 0:00:33.2]} 44. Ba2 {[%clk 0:00:29.4]}
44... a3 {[%clk 0:00:33.4]} 45. Bb3 {[%clk 0:00:28.7]} 45... Ke7 {[%clk
0:00:29.6]} 46. Bc4 {[%clk 0:00:28.6]} 46... f5 {[%clk 0:00:29.6]} 47. Bb3
{[%clk 0:00:28.2]} 47... Kf6 {[%clk 0:00:29.8]} 48. h4 {[%clk 0:00:27.7]} 48...
Bc1 {[%clk 0:00:27]} 49. hxg5+ {[%clk 0:00:26.9]} 49... Bxg5 {[%clk 0:00:26.8]}
50. Bc4 {[%clk 0:00:27]} 50... e5 {[%clk 0:00:27.1]} 51. Bb3 {[%clk 0:00:27]}
51... e4+ {[%clk 0:00:27.4]} 52. Kf2 {[%clk 0:00:27.2]} 52... Ke5 {[%clk
0:00:27.6]} 53. Ke2 {[%clk 0:00:27.1]} 53... f4 {[%clk 0:00:28.1]} 54. Bf7
{[%clk 0:00:26.6]} 54... f3+ {[%clk 0:00:27.3]} 55. Kf1 {[%clk 0:00:26.6]} 55...
e3 {[%clk 0:00:26.8]} 56. Bb3 {[%clk 0:00:26.1]} 56... e2+ {[%clk 0:00:25.4]}
57. Kf2 {[%clk 0:00:26.2]} 57... Bh4+ {[%clk 0:00:25.6]} 58. Kxf3 {[%clk
0:00:25.2]} 58... e1=Q {[%clk 0:00:25.6]} 0-1

[Event "Betsys MČR v online bleskovém šachu 2021"]
[Site "Chess.com"]
[Date "2021.04.17"]
[Round "1"]
[White "Tassa15"]
[Black "jhdghaka"]
[Result "0-1"]
[WhiteElo "847"]
[BlackElo "1874"]
[TimeControl "180+1"]
[EndTime "9:08:18 PDT"]
[Termination "Uživatel jhdghaka zvítězil na čas"]

1. d4 {[%clk 0:03:00.6]} 1... Nf6 {[%clk 0:02:59]} 2. Bg5 {[%clk 0:02:58]} 2...
e6 {[%clk 0:02:59.2]} 3. Nf3 {[%clk 0:02:56.6]} 3... b6 {[%clk 0:02:58.4]} 4. e3
{[%clk 0:02:55.9]} 4... Bb7 {[%clk 0:02:58.7]} 5. Nbd2 {[%clk 0:02:52.3]} 5...
h6 {[%clk 0:02:56.8]} 6. Bxf6 {[%clk 0:02:47.2]} 6... Qxf6 {[%clk 0:02:55.5]} 7.
Bd3 {[%clk 0:02:44.4]} 7... d6 {[%clk 0:02:43.3]} 8. O-O {[%clk 0:02:42]} 8...
Nd7 {[%clk 0:02:42.3]} 9. Qe2 {[%clk 0:02:38.2]} 9... c5 {[%clk 0:02:42.1]} 10.
Ba6 {[%clk 0:02:37.3]} 10... Bxa6 {[%clk 0:02:26.1]} 11. Qxa6 {[%clk 0:02:35.9]}
11... Qd8 {[%clk 0:02:27]} 12. c3 {[%clk 0:02:31.4]} 12... Be7 {[%clk
0:02:20.3]} 13. Qb5 {[%clk 0:02:26.6]} 13... O-O {[%clk 0:02:19.1]} 14. Ne4
{[%clk 0:02:07.7]} 14... d5 {[%clk 0:02:09.3]} 15. Ned2 {[%clk 0:02:01.6]} 15...
a6 {[%clk 0:02:06.4]} 16. Qe2 {[%clk 0:01:55]} 16... c4 {[%clk 0:02:06.2]} 17.
b3 {[%clk 0:01:52.2]} 17... b5 {[%clk 0:02:06.2]} 18. bxc4 {[%clk 0:01:50.7]}
18... bxc4 {[%clk 0:02:01.9]} 19. Rab1 {[%clk 0:01:50.3]} 19... Rb8 {[%clk
0:02:01.9]} 20. Rfc1 {[%clk 0:01:48.7]} 20... Qc7 {[%clk 0:02:01.1]} 21. Qd1
{[%clk 0:01:46.9]} 21... Ba3 {[%clk 0:01:59]} 22. Rc2 {[%clk 0:01:38.9]} 22...
Rxb1 {[%clk 0:01:58.4]} 23. Qxb1 {[%clk 0:01:38]} 23... Rb8 {[%clk 0:01:57.8]}
24. Qd1 {[%clk 0:01:35.2]} 24... Qb7 {[%clk 0:01:47.2]} 25. Qe1 {[%clk
0:01:21.7]} 25... Qb5 {[%clk 0:01:37.6]} 26. Qf1 {[%clk 0:01:12.2]} 26... Nb6
{[%clk 0:01:34.2]} 27. Ne5 {[%clk 0:01:01]} 27... Na4 {[%clk 0:01:32.6]} 28. h3
{[%clk 0:00:59.4]} 28... f6 {[%clk 0:00:39.1]} 29. Ng4 {[%clk 0:00:54.1]} 29...
Qa5 {[%clk 0:00:36.7]} 30. Nb1 {[%clk 0:00:49.7]} 30... Bb2 {[%clk 0:00:35.4]}
31. Qd1 {[%clk 0:00:37.4]} 31... Bxc3 {[%clk 0:00:19]} 32. Nxc3 {[%clk
0:00:30.8]} 32... Nxc3 {[%clk 0:00:19.9]} 33. Qd2 {[%clk 0:00:21.8]} 33... Rb1+
{[%clk 0:00:19.9]} 34. Kh2 {[%clk 0:00:20.4]} 34... Ra1 {[%clk 0:00:11]} 35.
Qxc3 {[%clk 0:00:17.9]} 35... Rxa2 {[%clk 0:00:10.9]} 36. Rxa2 {[%clk
0:00:17.1]} 36... Qxa2 {[%clk 0:00:11]} 37. Qb4 {[%clk 0:00:10.4]} 37... Kf7
{[%clk 0:00:11]} 38. Qb7+ {[%clk 0:00:09.3]} 38... Kg6 {[%clk 0:00:11.3]} 39.
Qd7 {[%clk 0:00:04.8]} 39... c3 {[%clk 0:00:08.1]} 40. Qxe6 {[%clk 0:00:04]}
40... c2 {[%clk 0:00:08.1]} 41. Qe8+ {[%clk 0:00:03]} 41... Kh7 {[%clk
0:00:08.1]} 0-1

[Event "Betsys MČR v online bleskovém šachu 2021"]
[Site "Chess.com"]
[Date "2021.04.17"]
[Round "1"]
[White "masterofbuzkashi"]
[Black "lupinek23"]
[Result "1-0"]
[WhiteElo "2267"]
[BlackElo "1625"]
[TimeControl "180+1"]
[EndTime "9:08:19 PDT"]
[Termination "Uživatel masterofbuzkashi zvítězil po vzdání soupeře"]

1. d4 {[%clk 0:03:00.8]} 1... d5 {[%clk 0:02:59.8]} 2. c4 {[%clk 0:03:00.3]}
2... c6 {[%clk 0:02:59.5]} 3. Nc3 {[%clk 0:03:00.6]} 3... Nf6 {[%clk 0:02:58]}
4. Nf3 {[%clk 0:03:00.7]} 4... e6 {[%clk 0:02:56.6]} 5. Bf4 {[%clk 0:03:00.7]}
5... Bd6 {[%clk 0:02:55.8]} 6. Bxd6 {[%clk 0:03:00.8]} 6... Qxd6 {[%clk
0:02:55.6]} 7. c5 {[%clk 0:03:01.5]} 7... Qc7 {[%clk 0:02:55.4]} 8. Ne5 {[%clk
0:03:02]} 8... O-O {[%clk 0:02:53.9]} 9. f4 {[%clk 0:03:01.9]} 9... b6 {[%clk
0:02:53]} 10. b4 {[%clk 0:03:01]} 10... bxc5 {[%clk 0:02:51.9]} 11. bxc5 {[%clk
0:03:00]} 11... Ba6 {[%clk 0:02:51]} 12. e3 {[%clk 0:02:55.9]} 12... Bxf1 {[%clk
0:02:45.6]} 13. Rxf1 {[%clk 0:02:55.9]} 13... Na6 {[%clk 0:02:43.9]} 14. Kf2
{[%clk 0:02:55.5]} 14... Rab8 {[%clk 0:02:38.9]} 15. Qa4 {[%clk 0:02:51.1]}
15... Rfc8 {[%clk 0:02:30.2]} 16. Qxa6 {[%clk 0:02:49.2]} 16... Rb2+ {[%clk
0:02:27.7]} 17. Kg1 {[%clk 0:02:45.2]} 17... h5 {[%clk 0:02:20]} 18. Rab1 {[%clk
0:02:43]} 18... Rcb8 {[%clk 0:02:15.8]} 19. Rxb2 {[%clk 0:02:41]} 19... Rxb2
{[%clk 0:02:14.7]} 20. Nxc6 {[%clk 0:02:32.4]} 20... g5 {[%clk 0:02:11]} 21. Nb5
{[%clk 0:02:17.9]} 21... Qb8 {[%clk 0:02:05.5]} 22. Ncxa7 {[%clk 0:02:09.4]}
22... gxf4 {[%clk 0:02:00.3]} 23. exf4 {[%clk 0:02:04.5]} 23... Kh7 {[%clk
0:01:56.5]} 24. Qd6 {[%clk 0:02:02.6]} 24... Qg8 {[%clk 0:01:55.1]} 25. g3
{[%clk 0:01:51.1]} 25... h4 {[%clk 0:01:53.8]} 26. f5 {[%clk 0:01:47.8]} 26...
Ne4 {[%clk 0:01:49.1]} 27. Qf4 {[%clk 0:01:42.9]} 27... Qg7 {[%clk 0:01:21.5]}
28. Qxh4+ {[%clk 0:01:36.7]} 28... Kg8 {[%clk 0:01:20.8]} 29. Nd6 {[%clk
0:01:27.8]} 29... Qxd4+ {[%clk 0:01:12.2]} 30. Kh1 {[%clk 0:01:18.5]} 30... Nf2+
{[%clk 0:01:10.6]} 31. Kg2 {[%clk 0:01:09.4]} 31... Ng4+ {[%clk 0:01:06.8]} 32.
Kh1 {[%clk 0:00:47.2]} 32... Nf2+ {[%clk 0:01:05.1]} 33. Rxf2 {[%clk 0:00:33.2]}
33... Qxf2 {[%clk 0:00:55.3]} 34. Qg5+ {[%clk 0:00:30.8]} 34... Kf8 {[%clk
0:00:53.1]} 35. Qd8+ {[%clk 0:00:29.3]} 35... Kg7 {[%clk 0:00:52.5]} 36. Qg5+
{[%clk 0:00:28.5]} 36... Kf8 {[%clk 0:00:52.4]} 37. Qh6+ {[%clk 0:00:24.8]}
37... Ke7 {[%clk 0:00:50.3]} 38. Qh4+ {[%clk 0:00:21.3]} 38... Kd7 {[%clk
0:00:49.1]} 39. fxe6+ {[%clk 0:00:21.6]} 39... fxe6 {[%clk 0:00:46.5]} 40. Qh7+
{[%clk 0:00:21.3]} 40... Kd8 {[%clk 0:00:43.3]} 41. Qg8+ {[%clk 0:00:20.3]}
41... Kd7 {[%clk 0:00:42.6]} 42. Qc8+ {[%clk 0:00:19.6]} 42... Ke7 {[%clk
0:00:41.9]} 43. Qe8+ {[%clk 0:00:19.5]} 43... Kf6 {[%clk 0:00:41.5]} 44. Qf7+
{[%clk 0:00:19.5]} 44... Ke5 {[%clk 0:00:40.7]} 45. Qxf2 {[%clk 0:00:19.2]}
45... Rxf2 {[%clk 0:00:38.1]} 46. Ndb5 {[%clk 0:00:16.3]} 46... Rxa2 {[%clk
0:00:36.9]} 47. c6 {[%clk 0:00:16.1]} 47... Rxa7 {[%clk 0:00:30.9]} 48. Nxa7
{[%clk 0:00:15.5]} 48... Kd6 {[%clk 0:00:31.2]} 49. h4 {[%clk 0:00:15.1]} 49...
Kc7 {[%clk 0:00:31.1]} 50. Kg2 {[%clk 0:00:15]} 50... d4 {[%clk 0:00:31.6]} 51.
Kf3 {[%clk 0:00:15.1]} 51... e5 {[%clk 0:00:32]} 52. Ke4 {[%clk 0:00:15.4]}
52... Kb6 {[%clk 0:00:29.6]} 53. h5 {[%clk 0:00:15.6]} 53... Kxa7 {[%clk
0:00:29.6]} 54. h6 {[%clk 0:00:16]} 54... Kb6 {[%clk 0:00:29.9]} 55. h7 {[%clk
0:00:16.4]} 55... Kxc6 {[%clk 0:00:30.6]} 56. h8=Q {[%clk 0:00:16.3]} 56... Kc5
{[%clk 0:00:31.5]} 57. Qc8+ {[%clk 0:00:16.3]} 1-0